Cogmind - Beta 16 @@@ ROGUE MODE // 2025.10.31 @ 13:38:55 Player: Spoodle Result: Destroyed by B-75 Beast with Magnetic Acceleration Cannon Performance ------------- Evolutions (5) 2500 Regions Visited (22) 4400 Robots Destroyed (311) 1555 Value Destroyed (11364) 11364 Prototype IDs (46) 920 Alien Tech Used (0) 0 Bonus (6428) 6428 TOTAL SCORE: 27167 Bonus ------- High Alert Combat Kills 1106 Follower Combat Kills 2801 Entered Garrisons 600 Used RIF Installer 1500 Network Hubs Disabled 200 Met Data Miner 300 Built Enhanced Grunts 300 A7 Reached Mainframe 300 Met R17 at Cetus 500 Friendly Fire -1179 Cogmind --------- Core Integrity 0/1000 Matter 207/300 Energy 63/100 System Corruption 12% Temperature Cool (12) Movement Core (50) Location -5/Upper Caves Parts ------- > --- POWER (2) -------- (None) > --- PROPULSION (4) --- (None) > --- UTILITY (8) ------ Experimental Heat Sink Improved Sensor Array > --- WEAPON (3) ------- (None) > --- INVENTORY (5) ---- Large Storage Unit Improved Transmission Jammer Medium Regenerative Plating Peak State ------------ > --- POWER ------------ Hybrid Deuterium Engine Quantum Reactor > --- PROPULSION ------- Enhanced Flexi-carbon Leg Enhanced Armored Leg Enhanced Armored Leg Myomer Leg > --- UTILITY ---------- Large Storage Unit Improved Signal Interpreter Improved Melee Analysis Suite Core Analyzer Microactuators Cloaking Device Centrium Medium Armor Plating Medium Regenerative Plating > --- WEAPON ----------- Great Axe Great Axe Great Axe > --- INVENTORY -------- Improved Titanium Leg Advanced Heat Sink Coolant Injector High-capacity Storage Unit Advanced Energy Well Improved Sensor Array Relay Coupler [NC] Relay Coupler [NC] Relay Coupler [Grunt] Relay Coupler [Brawler] Relay Coupler [Heavy] Heavy Plasma Cannon Remote Datajack Power Maul [Rating: 95] Favorites ----------- Power Improved Ion Engine Engine Improved Ion Engine Power Core Light Fission Core Reactor Quantum Reactor Propulsion Light Treads Treads Light Treads Leg Carbon-fiber Leg Wheel Armored Huge Wheel Flight Unit VTOL Module Utility High-capacity Storage Unit Device Improved Sensor Array Storage High-capacity Storage Unit Processor Improved Melee Analysis Suite Hackware Hacking Suite Protection Layered Light Armor Plating Weapon Great Axe Energy Gun Improved Medium Laser Energy Cannon Cooled Particle Cannon Ballistic Gun Minigun Ballistic Cannon Bore Cannon Launcher Heavy Rocket Launcher Special Weapon Remote Datajack Impact Weapon Power Maul Slashing Weapon Great Axe Build | -11 -10 -10 -9 -9 -8 -8 -8 -7 -7 -7 -7 -6 -6 -6 -6 -6 -6 -6 -5 -5 -5 -5 ------- Run | Yrd Mat Min Mat Min Mat Gar Mat Fac Low Low Dat Pro Fac Ext Cet Arc Hub Gar Fac Gar Fac Upp Slots Evolved 10 | . . . 2 . 2 . . 2 . . . . 2 . . . . . 2 . . . Power 1 | . . . . . . . . . . . . . . . . . . . 1 . . . Propulsion 2 | . . . 1 . . . . 1 . . . . . . . . . . . . . . Utility 6 | . . . 1 . 1 . . 1 . . . . 2 . . . . . 1 . . . Weapon 1 | . . . . . 1 . . . . . . . . . . . . . . . . . Parts Attached 222 | 7 17 . 26 1 17 10 13 26 1 2 . 12 5 21 5 1 9 9 12 15 13 . Power 24 | 1 3 . 2 . 2 1 1 1 1 . . . 1 3 1 . 2 1 1 2 1 . Engine 15 | 1 3 . 2 . 1 1 1 1 . . . . 1 1 . . 2 . 1 . . . Core 5 | . . . . . 1 . . . . . . . . 2 . . . . . 1 1 . Reactor 4 | . . . . . . . . . 1 . . . . . 1 . . 1 . 1 . . Propulsion 78 | 2 6 . 11 . 5 4 5 8 . 2 . 4 . 10 2 . 3 3 5 5 3 . Treads 38 | . 3 . 10 . 5 4 5 7 . 2 . 1 . . 1 . . . . . . . Leg 34 | 2 3 . . . . . . 1 . . . 3 . 10 1 . 3 3 5 2 1 . Wheel 3 | . . . . . . . . . . . . . . . . . . . . 1 2 . Hover . | . . . . . . . . . . . . . . . . . . . . . . . Flight 3 | . . . 1 . . . . . . . . . . . . . . . . 2 . . Utility 64 | 2 2 . 4 1 4 2 3 11 . . . 3 4 4 1 1 3 5 2 5 7 . Device 28 | 1 1 . . . 2 . 2 6 . . . . 2 3 . 1 1 2 1 1 5 . Storage 5 | 1 1 . 1 1 . . 1 . . . . . . . . . . . . . . . Processor 10 | . . . . . . 1 . 4 . . . 2 1 . . . 1 . . 1 . . Hackware 8 | . . . 1 . . . . . . . . . . . . . . 3 1 2 1 . Protection 13 | . . . 2 . 2 1 . 1 . . . 1 1 1 1 . 1 . . 1 1 . Artifact . | . . . . . . . . . . . . . . . . . . . . . . . Weapon 56 | 2 6 . 9 . 6 3 4 6 . . . 5 . 4 1 . 1 . 4 3 2 . Energy Gun 15 | . 1 . . . 5 1 2 1 . . . 1 . . 1 . . . 1 1 1 . Energy Cannon 8 | . 2 . . . . . . 3 . . . 1 . 1 . . . . . . 1 . Ballistic Gun 15 | 2 2 . 9 . . . . . . . . . . . . . . . . 2 . . Ballistic Cannon 2 | . . . . . . . . . . . . . . 1 . . 1 . . . . . Launcher 5 | . . . . . 1 1 1 2 . . . . . . . . . . . . . . Special Weapon 2 | . 1 . . . . . . . . . . . . 1 . . . . . . . . Impact Weapon 1 | . . . . . . . . . . . . 1 . . . . . . . . . . Slashing Weapon 8 | . . . . . . 1 1 . . . . 2 . 1 . . . . 3 . . . Piercing Weapon . | . . . . . . . . . . . . . . . . . . . . . . . Special Melee Weapon . | . . . . . . . . . . . . . . . . . . . . . . . Unidentified Prototypes 15 | . . . 2 . 2 . . 2 . . . . 1 . 3 . 2 . 2 . 1 . Corrupted Parts 2 | . . . . . . . . . . . . 2 . . . . . . . . . . System Corruption 10 | . . . . . . . . . . . . 10 . . . . . . . . . . Parts Lost 75 | . 1 . 1 . 4 8 4 . . 1 . 5 1 7 . 1 6 3 4 15 14 . Power 10 | . . . . . 2 . 1 . . . . . . 2 . . . . . 2 3 . Propulsion 27 | . . . . . 2 3 1 . . 1 . 2 . 2 . . 4 1 1 6 4 . Utility 18 | . . . 1 . . 1 . . . . . 3 1 1 . 1 . . 2 4 4 . Weapon 20 | . 1 . . . . 4 2 . . . . . . 2 . . 2 2 1 3 3 . Highest Loss Streak 8 | . 1 . 1 . 1 4 1 . . 1 . 4 1 2 . 1 2 2 3 6 8 . To Critical Strikes 2 | . . . . . . . . . . . . . . 1 . . . . . . 1 . Average Backups 19 | 4 13 15 19 21 24 24 23 19 19 19 19 18 14 19 19 19 19 19 19 15 16 3 Power 1 | . . 1 1 . 1 2 2 2 2 2 2 2 2 2 2 3 3 2 1 . . . Propulsion 3 | 1 2 2 3 5 5 5 5 4 3 3 3 3 1 4 3 3 3 1 2 . . . Utility 8 | . 7 8 6 7 9 10 12 8 9 9 9 7 5 7 8 8 8 12 12 10 12 3 Weapon 4 | 1 3 3 7 7 6 4 2 3 4 4 4 4 5 3 4 4 3 2 2 2 3 . Tool/Special . | . . . . . . . . . . . . . . . . . . . . . . . Unused Backups 52 | . 7 . 3 3 4 2 7 5 . . . . . 2 1 . 2 . 2 1 12 1 Power 4 | . 1 . . 1 . . . 1 . . . . . . 1 . . . . . . . Propulsion 7 | . 1 . . . . 1 1 . . . . . . 1 . . 1 . 2 . . . Utility 31 | . 4 . 1 1 3 1 5 2 . . . . . 1 . . 1 . . 1 10 1 Weapon 7 | . 1 . 1 1 1 . . 2 . . . . . . . . . . . . 1 . Tool/Special 3 | . . . 1 . . . 1 . . . . . . . . . . . . . 1 . Average Slot Usage (%) 97 | . 100 100 99 100 99 99 99 99 100 96 86 92 91 98 98 99 97 96 97 89 83 10 Engine 6 | . 14 14 11 11 7 5 9 7 3 . . . 4 3 . . 2 3 4 1 4 . Reactor 1 | . . . . . . . . . 3 7 7 7 1 . 1 6 3 3 5 4 . . Treads 18 | . 17 28 32 33 27 27 26 30 30 27 30 26 . . . . . . . . . . Leg 7 | . 10 . . . . . . . . . . . 26 25 25 26 25 25 22 15 1 . Device 8 | . 14 14 2 . 8 9 9 14 7 7 7 4 4 5 9 9 7 3 16 6 16 10 Storage 8 | . 14 14 11 11 9 9 9 7 7 7 7 7 6 6 6 6 6 6 5 5 4 . Processor 11 | . . . . . . . . 11 23 23 23 19 25 26 26 26 28 26 19 16 10 . Hackware 3 | . . . 8 11 9 9 9 1 . . . . . . . . . 3 2 2 4 . Protection 5 | . . . 10 11 9 8 9 1 . . . 2 7 6 3 2 2 5 . 9 4 . Energy Gun 5 | . 5 . . . 16 12 26 8 . . . 2 . . . . . . . 2 . . Energy Cannon 4 | . 7 14 1 . . . . 7 14 14 2 5 . . 1 . . 2 . . 8 . Ballistic Gun 5 | . 14 14 19 22 10 12 . . . . . . . . . . . . . 2 . . Impact Weapon 1 | . . . . . . . . . . . . 3 3 3 4 4 6 4 2 . . . Slashing Weapon 4 | . . . . . . 1 . 5 7 7 7 10 9 12 11 13 10 2 6 7 . . Peak Build Rating 95 | 7 10 10 21 23 37 34 35 49 49 52 51 58 62 68 82 73 78 77 89 95 71 11 Average Rating 42 | 5 8 10 18 21 31 30 30 43 47 48 42 50 58 61 67 72 70 72 81 83 62 10 On Entrance 41 | . 7 10 10 21 23 33 30 34 46 49 51 51 56 60 67 72 73 67 72 71 43 2 Avg Prop Armor Cover (%) 3 | . . . 7 . . . . . . . . . . 6 . . . . . 2 2 . Naked Turns 10 | . . . . . . . . . . . . . . . . . . . . . 10 . Heaviest Build 103 | 15 33 33 59 98 103 103 103 77 75 75 71 75 70 77 82 74 80 84 95 97 89 1 Greatest Support 99 | 20 40 40 60 60 60 60 60 91 91 99 93 93 70 80 80 80 80 80 93 93 38 3 Greatest Overweight (x) 24 | . 1 . . 1 1 1 2 . . 1 . 1 . 1 1 . 1 1 1 24 3 . Average Overweight (x) . | . . . . . 1 1 1 . . . . . . . . . . . . 1 2 . Largest Inventory Capacity 25 | 8 15 15 20 25 25 25 25 20 20 20 20 20 20 20 20 20 20 20 20 20 20 5 Average Capacity 20 | 7 14 15 19 23 25 25 24 20 20 20 20 20 20 20 20 20 20 20 20 16 19 5 Most Carried 25 | 6 15 15 20 24 25 25 25 20 20 20 20 20 16 20 20 20 20 20 20 19 20 4 Average Carried 19 | 4 13 15 19 21 24 24 23 19 20 20 20 19 14 19 19 19 19 19 19 15 17 3 Final Capacity 25 | 8 15 15 20 25 25 25 20 20 20 20 20 20 20 20 20 20 20 20 20 20 20 5 Final Carried 25 | 6 15 15 20 24 24 25 20 20 20 20 20 17 16 20 20 20 20 20 19 18 14 3 Class Distribution -------------------- 24% | Scavenger-Mutant 19% | Scavenger-Tank 18% | Mutant 8% | Scavenger-Gladiator 7% | Assassin 6% | Gladiator 5% | Commander-Gladiator 3% | Bothacker-Mutant Dominant Class ---------------- Mutant | -10/Materials Mutant | -10/Mines Mutant | -9/Materials Scavenger-Mutant | -9/Mines Scavenger-Tank | -8/Materials Scavenger-Tank | -8/Garrison Scavenger-Tank | -8/Materials Scavenger-Mutant | -7/Factory Assassin | -7/Lower Caves Mutant | -7/Lower Caves Assassin | -7/Data Miner Gladiator | -6/Proximity Caves Gladiator | -6/Factory Scavenger-Gladiator | -6/Extension Scavenger-Gladiator | -6/Cetus Scavenger-Gladiator | -6/Archives Commander-Gladiator | -6/Hub_04(d) Bothacker-Mutant | -6/Garrison Bothacker-Gladiator | -5/Factory Scavenger-Mutant | -5/Garrison Bothacker-Skirmisher | -5/Factory Mutant | -5/Upper Caves Resources | -11 -10 -10 -9 -9 -8 -8 -8 -7 -7 -7 -7 -6 -6 -6 -6 -6 -6 -6 -5 -5 -5 -5 ----------- Run | Yrd Mat Min Mat Min Mat Gar Mat Fac Low Low Dat Pro Fac Ext Cet Arc Hub Gar Fac Gar Fac Upp Matter Collected 7446 | 357 660 . 1122 152 518 551 184 388 78 98 . 112 273 885 180 30 240 341 53 724 500 . Remotely . | . . . . . . . . . . . . . . . . . . . . . . . Salvage Created 12468 | 173 853 . 1948 267 1336 1055 944 1295 23 200 . 246 672 898 189 71 343 492 83 775 605 . Parts 622 | 17 57 . 118 18 62 39 36 70 5 10 . 14 21 33 7 7 19 20 3 46 20 . Haulers Intercepted 17 | . 2 . 6 . 2 . 2 2 . . . . 3 . . . . . . . . . Recyclers Shooed 10 | . 1 . 4 1 . . . 4 . . . . . . . . . . . . . . Parts Field Recycled . | . . . . . . . . . . . . . . . . . . . . . . . Retrieved Matter . | . . . . . . . . . . . . . . . . . . . . . . . Parts Self-Destructed 23 | . . . . . . . . . 6 8 . 9 . . . . . . . . . . Prevented 4 | . . . . . . . . . 2 . . 2 . . . . . . . . . . Parts Restored . | . . . . . . . . . . . . . . . . . . . . . . . Kills | -11 -10 -10 -9 -9 -8 -8 -8 -7 -7 -7 -7 -6 -6 -6 -6 -6 -6 -6 -5 -5 -5 -5 ------- Run | Yrd Mat Min Mat Min Mat Gar Mat Fac Low Low Dat Pro Fac Ext Cet Arc Hub Gar Fac Gar Fac Upp Combat Hostiles Destroyed 211 | . 17 . 34 6 20 22 16 14 3 5 . 5 5 16 1 . 3 12 2 20 10 . Melee 34 | . . . . . . . . 3 . . . . 4 9 . . 3 3 2 10 . . Guns 109 | . 15 . 28 6 17 19 13 . . . . . . . . . . . . 10 1 . Cannons 31 | . 2 . 5 . . . . 7 1 1 . 4 . 2 1 . . 2 . . 6 . AOE 21 | . . . 1 . . 3 3 3 2 4 . . . . . . . 5 . . . . Classes Destroyed 21 | 2 7 . 2 2 4 1 . . . . . 1 . 1 . . . . . 1 . . Worker 10 | . 1 . 1 . 3 . . 4 . . . . . . . . 1 . . . . . Builder 7 | . 1 . 1 2 1 . . 1 . . . . . 1 . . . . . . . . Tunneler 8 | 5 1 . 1 . . . . 1 . . . . . . . . . . . . . . Hauler 17 | . 2 . 6 . 2 . 2 2 . . . . 3 . . . . . . . . . Recycler 21 | 1 1 . 6 . 2 . . 9 . . . . 1 1 . . . . . . . . Mechanic 4 | . . . 1 . 1 . 1 1 . . . . . . . . . . . . . . Operator 14 | . 3 . 1 . 1 . 3 2 . . . . . 1 . 2 1 . . . . . Watcher 13 | . 3 . 5 . 1 . . 1 . . . . 1 1 . . 1 . . . . . Swarmer 61 | . 6 . 13 . 3 1 . 3 3 . . 2 2 4 . . 3 3 1 17 . . Cutter 2 | . . . . . . . . . . . . . . . . . . . . 2 . . Grunt 87 | . 11 . 14 4 10 13 10 6 . 5 . . . 4 . . . 5 . 1 4 . Brawler 6 | . . . . . 1 1 1 . . . . . . . . . . 3 . . . . Duelist 1 | . . . . . . . . . . . . . . 1 . . . . . . . . Protector 1 | . . . . 1 . . . . . . . . . . . . . . . . . . Sentry 30 | . . . 7 . 3 5 4 2 . . . 1 1 6 . . . . . . 1 . Demolisher 2 | . . . . 1 . 1 . . . . . . . . . . . . . . . . Specialist 1 | . . . . . 1 . . . . . . . . . . . . . . . . . Hunter 5 | . . . . . 1 . 1 . . . . 1 1 . . . . . . 1 . . Programmer 12 | . . . . . . 1 . 3 . . . . 1 . . . . 1 1 . 5 . Heavy 1 | . . . . . 1 . . . . . . . . . . . . . . . . . Behemoth 2 | . . . . . . . . . . . . 1 . 1 . . . . . . . . Cetus Guard 1 | . . . . . . . . . . . . . . . 1 . . . . . . . Enhanced Grunt 2 | . . . . . . . . . . . . . . . . . 2 . . . . . Decomposer 2 | . . . . . . . . . . 2 . . . . . . . . . . . . Thug 1 | . . . . . . . . . . . . . . . 1 . . . . . . . Savage 1 | . . . . . . . . . . . . . . . 1 . . . . . . . Guerrilla 1 | . . . . . . . . . . . . . . . . . 1 . . . . . Best Kill Streak 6 | 3 4 . 6 2 5 5 4 4 3 4 . 2 2 5 1 2 1 3 1 5 5 . Combat Bots Only 5 | . 4 . 4 2 3 5 4 4 3 4 . 2 2 3 1 . 1 3 1 5 5 . Max Kills in Single Turn 3 | 1 2 . 2 2 2 1 2 2 2 2 . 1 1 2 1 1 2 3 1 2 1 . Gunslinging 1 | . . . . . . . . . . . . . . . . . . . . 1 . . Exploded 3 | . . . 1 . . 1 2 2 2 2 . . . . . . . 3 . . . . Melee 1 | . . . . . . . . 1 . . . . 1 1 . . 1 1 1 1 . . Uniques/NPCs Destroyed . | . . . . . . . . . . . . . . . . . . . . . . . Combat | -11 -10 -10 -9 -9 -8 -8 -8 -7 -7 -7 -7 -6 -6 -6 -6 -6 -6 -6 -5 -5 -5 -5 -------- Run | Yrd Mat Min Mat Min Mat Gar Mat Fac Low Low Dat Pro Fac Ext Cet Arc Hub Gar Fac Gar Fac Upp Hostile Shots Fired 1650 | . 74 . 149 11 128 119 61 128 16 17 . 73 74 132 21 1 51 63 135 249 143 5 Missed 493 | . 19 . 37 3 42 34 15 39 5 9 . 22 27 45 11 . 16 19 40 63 45 2 Hits 1157 | . 55 . 112 8 86 85 46 89 11 8 . 51 47 87 10 1 35 44 95 186 98 3 Melee 10 | . . . . . 1 . . . . . . . . 1 . . . . 5 3 . . Projectile 1147 | . 55 . 112 8 85 85 46 89 11 8 . 51 47 86 10 1 35 44 90 183 98 3 AOE 6 | . . . . 1 . 3 . . . . . . . . . . . . . 1 1 . Critical Strikes 48 | . 3 . 2 . 6 4 1 5 . . . 2 3 3 2 . . 4 3 7 2 1 Actively Blocked 1 | . . . . . . . . . . . . . 1 . . . . . . . . . Part Disruptions 5 | . . . . . . . 1 . . . . . . . . . 1 . 1 1 1 . Damage Taken 17652 | . 616 . 1347 198 1349 1373 797 864 132 108 . 877 702 1086 225 54 909 717 1172 3008 2038 80 Core 2215 | . 127 . 147 . 124 196 153 86 . 6 . 80 74 42 14 26 82 32 168 323 455 80 Absorbed by Shields 910 | . . . . . . 15 . 180 44 28 . 64 . 9 65 . . . 389 . 116 . Redirected to Shielding 102 | . . . . . . . . . . . . . 56 28 . 18 . . . . . . Regen/Repaired (Parts) 1427 | . . . 136 . 11 . . 138 . . . . . . . . 111 242 13 428 348 . Core Remaining (%) 61 | 100 . 49 . 63 . . 14 . . . . 75 . . . . . 68 . . . . Volleys Fired 697 | 15 80 . 130 21 78 63 36 38 8 17 . 13 . 49 12 2 8 25 9 36 57 . Largest 3 | 2 2 . 2 2 3 3 3 3 2 2 . 2 . 1 2 1 1 2 1 2 2 . Hottest 240 | 40 120 . 100 48 144 137 176 185 60 60 . 110 . 48 240 5 90 180 90 114 180 . Shots Fired 1390 | 29 154 . 254 42 226 169 103 74 15 33 . 26 . 49 23 2 8 26 9 60 88 . Gun 967 | 29 140 . 200 42 226 166 101 6 . . . 3 . . 1 . . . . 48 5 . Cannon 322 | . 12 . 48 . . . . 66 13 31 . 23 . 10 22 . 8 12 5 . 72 . Launcher 17 | . . . . . . 3 2 2 2 2 . . . 1 . . . 5 . . . . Special 84 | . 2 . 6 . . . . . . . . . . 38 . 2 . 9 4 12 11 . Kinetic 568 | 29 103 . 200 42 82 76 2 . . . . . . 10 . . . . . 24 . . Thermal 729 | . 51 . 54 . 144 90 99 72 13 31 . 26 . . 23 . 8 12 5 24 77 . Explosive 17 | . . . . . . 3 2 2 2 2 . . . 1 . . . 5 . . . . Electromagnetic . | . . . . . . . . . . . . . . . . . . . . . . . Robot Hit Streak 23 | 12 14 . 9 11 10 23 16 13 1 6 . 8 . 21 7 1 . 14 4 14 10 . Robot Miss Streak 5 | 1 4 . 4 2 3 3 2 4 5 2 . 1 . 2 3 4 . 2 . 5 2 . Penetration Max 2 | . . . . . . . . . . . . . . 2 . . . . . 1 . . Secondary Targets 13 | . 3 . . . 1 5 2 . . . . . . . . . . . . 2 . . Max Gunslinging Chain 1 | . 1 . . . 1 1 1 . . . . . . . . . . . . 1 . . Shots Hit Robots 1037 | 21 92 . 155 28 148 113 73 65 2 12 . 18 31 83 18 3 12 25 15 73 50 . Core Hits 438 | 9 45 . 78 13 51 45 38 33 6 12 . 9 7 20 9 2 9 12 2 27 11 . Critical Kills 11 | . 1 . . . . 2 . 1 . . . . 1 4 . . . 1 . . 1 . Critical Parts Destroyed 13 | . . . . . . . . . . . . 2 1 8 . . . 1 . 1 . . Critical Strikes 63 | . 1 . . . 10 9 4 4 . . . 3 5 17 2 . . 2 1 4 1 . Burn 22 | . . . . . 10 7 4 . . . . . . . . . . . . 1 . . Meltdown 3 | . . . . . . . . 1 . . . . . . . . . 1 . . 1 . Destroy 11 | . 1 . . . . 2 . . . . . . . 7 . . . . . 1 . . Smash 13 | . . . . . . . . . . . . 3 2 6 1 . . 1 . . . . Sever 14 | . . . . . . . . 3 . . . . 3 4 1 . . . 1 2 . . Melee Attacks 356 | . . . . . . 23 1 53 6 . . 8 52 53 4 2 29 22 28 75 . . Impact 80 | . . . . . . . . . . . . 6 15 28 1 . 12 15 3 . . . Slashing 276 | . . . . . . 23 1 53 6 . . 2 37 25 3 2 17 7 25 75 . . Piercing . | . . . . . . . . . . . . . . . . . . . . . . . Sneak Attacks 27 | . . . . . . . . 12 . . . . 4 1 4 2 4 . . . . . Combat Hostiles . | . . . . . . . . . . . . . . . . . . . . . . . Follow-up Attacks 33 | . . . . . . . . . . . . 2 3 12 . . 3 . 2 11 . . Damage Inflicted 27732 | 259 1339 . 2720 514 2607 2184 1672 3246 263 579 . 628 1878 2267 884 219 893 1119 427 2644 1390 . Guns 10748 | 252 1135 . 2043 474 2572 1962 1284 60 . . . 44 . . . . . . . 836 86 . Cannons 4857 | . 123 . 543 . . . . 1182 27 325 . 214 . 293 611 . . 235 . . 1304 . Explosions 2299 | . . . 94 . . 222 303 443 236 254 . . . 93 . . 183 471 . . . . Melee 9372 | . . . . . . . . 1418 . . . 370 1878 1881 273 219 710 413 411 1799 . . Ramming 456 | 7 81 . 40 40 35 . 85 143 . . . . . . . . . . 16 9 . . Kinetic 6366 | 252 902 . 2043 474 926 977 14 . . . . . . 293 . . . . . 485 . . Thermal 9239 | . 356 . 543 . 1646 985 1270 1242 27 325 . 258 . . 611 . . 235 . 351 1390 . Explosive 2116 | . . . 94 . . 222 303 443 236 254 . . . 93 . . . 471 . . . . Electromagnetic 183 | . . . . . . . . . . . . . . . . . 183 . . . . . Impact 2808 | . . . . . . . . . . . . 293 759 999 95 . 249 413 . . . . Slashing 6564 | . . . . . . . . 1418 . . . 77 1119 882 178 219 461 . 411 1799 . . Piercing . | . . . . . . . . . . . . . . . . . . . . . . . Highest Corruption 12 | . . . . . . . . 3 1 1 1 11 2 2 . . 1 2 1 3 12 12 Average Corruption 1 | . . . . . . . . 1 1 1 1 1 1 1 . . 1 1 1 1 4 12 Corruption Purged 8 | . . . . . . . . 6 . . . . . 2 . . . . . . . . Corruption Blocked . | . . . . . . . . . . . . . . . . . . . . . . . Effects 89 | . . . . . . . . 7 4 8 2 9 3 15 . . 1 6 2 6 22 4 Message Errors 18 | . . . . . . . . 2 1 2 . 2 1 2 . . 1 1 1 1 4 . Matter Fused 16 | . . . . . . . . . . 1 . 2 . 5 . . . 1 . 1 5 1 Heat Flow Errors 14 | . . . . . . . . 3 . 2 1 2 . . . . . 2 . . 4 . Energy Discharges 13 | . . . . . . . . 1 1 1 . 1 . 2 . . . 2 . 1 3 1 Parts Rejected 1 | . . . . . . . . . . . . . . 1 . . . . . . . . Parts Fused 4 | . . . . . . . . . . . . 1 1 . . . . . 1 1 . . Data Loss (minor) 11 | . . . . . . . . 1 1 1 1 . . 3 . . . . . 1 3 . Data Loss (major) 6 | . . . . . . . . . . . . 1 1 1 . . . . . 1 1 1 Misfires 4 | . . . . . . . . . 1 1 . . . . . . . . . . 2 . Alerts 1 | . . . . . . . . . . . . . . 1 . . . . . . . . Misdirections 1 | . . . . . . . . . . . . . . . . . . . . . . 1 Overload Shots 1 | . . . . . . . . . . . . . . . 1 . . . . . . . Overflow Damage 1555 | . . . . . . . 10 293 32 59 . 114 286 450 . . 43 111 41 40 76 . Projectiles 202 | . . . . . . . . 67 . 59 . . . . . . . . . . 76 . Explosions 92 | . . . . . . . . 9 32 . . . . . . . . 51 . . . . Melee 1261 | . . . . . . . 10 217 . . . 114 286 450 . . 43 60 41 40 . . Knockbacks 13 | . . . 1 . . . 1 1 . . . . 2 4 1 . . 3 . . . . Impact 11 | . . . 1 . . . 1 1 . . . . 2 3 1 . . 2 . . . . Kinetic 1 | . . . . . . . . . . . . . . 1 . . . . . . . . Secondary 1 | . . . . . . . . . . . . . . . . . . 1 . . . . Self-Inflicted Damage 314 | . . . 81 . . . . . . 20 . . . . . . 101 50 . . 62 . Shots 5 | . . . 1 . . . . . . 1 . . . . . . 1 1 . . 1 . Rammed 44 | . 15 1 4 4 3 . 6 11 . . . . . . . . . . . . . . Targets Rammed 67 | 4 19 1 5 4 3 . 7 18 . . . . . . . . . . 3 3 . . Kicked 14 | 4 4 . . . . . . . . . . . . . . . . . 3 3 . . Crushed 9 | . . . 1 . . . 1 7 . . . . . . . . . . . . . . Highest Temperature 471 | . 54 . 163 49 225 162 243 215 . 120 259 471 . 20 199 . 296 120 144 140 172 . Average Temperature 54 | . 18 . 35 16 37 37 71 98 . 40 136 152 . 12 132 . 91 51 63 47 39 . Received Heat Transfer 4309 | . 231 . 408 54 423 576 342 114 . 53 . 739 102 265 18 . 51 276 41 216 351 49 Effects 1 | . . . . . . . . . . . . 1 . . . . . . . . . . Shutdowns 1 | . . . . . . . . . . . . 1 . . . . . . . . . . Siege Activations . | . . . . . . . . . . . . . . . . . . . . . . . Martial Activations . | . . . . . . . . . . . . . . . . . . . . . . . Shielding Activations . | . . . . . . . . . . . . . . . . . . . . . . . Robots Disrupted . | . . . . . . . . . . . . . . . . . . . . . . . Combat Hostiles . | . . . . . . . . . . . . . . . . . . . . . . . Robots Corrupted 10 | . . . . . . . 1 . . . . 1 2 5 . . . 1 . . . . Combat Hostiles 8 | . . . . . . . . . . . . 1 1 5 . . . 1 . . . . Parts Fried 18 | . . . . . . . 2 . . . . 1 3 10 . . 2 . . . . . Impact Corruptions 26 | . . . . . . . 1 . . . . 2 5 13 . . 2 3 . . . . Robots Melted 8 | . . . . . 3 . . 1 . . . . . . . . . 1 . . 3 . Combat Hostiles 8 | . . . . . 3 . . 1 . . . . . . . . . 1 . . 3 . Parts Melted 41 | . . . 3 . 6 3 10 6 . . . 1 . . 1 . . 1 1 . 9 . Heat Transferred 18108 | . 784 . 1147 . 4292 2590 2886 1665 37 444 . 396 . . 925 . . 350 . 592 2000 . Parts Sabotaged 2 | . . . . . . . . . . . . . . . . . . . 2 . . . Parts Stolen . | . . . . . . . . . . . . . . . . . . . . . . . Parts Stripped . | . . . . . . . . . . . . . . . . . . . . . . . Power Chain Reactions . | . . . . . . . . . . . . . . . . . . . . . . . Alert | -11 -10 -10 -9 -9 -8 -8 -8 -7 -7 -7 -7 -6 -6 -6 -6 -6 -6 -6 -5 -5 -5 -5 ------- Run | Yrd Mat Min Mat Min Mat Gar Mat Fac Low Low Dat Pro Fac Ext Cet Arc Hub Gar Fac Gar Fac Upp Maximum Alert Level 5 | . . . 1 . 1 3 2 1 . . . . . 1 1 1 5 4 3 3 2 . Low Security (%) 53 | 100 100 100 64 100 91 9 . 54 . . . . 100 89 28 39 29 . . . . . Level 1 18 | . . . 35 . 8 19 . 45 . . . . . 10 71 60 3 . . 5 51 . Level 2 13 | . . . . . . 27 99 . . . . . . . . . 15 . 44 26 48 . Level 3 9 | . . . . . . 43 . . . . . . . . . . 15 9 55 68 . . Level 4 4 | . . . . . . . . . . . . . . . . . 35 90 . . . . Level 5 . | . . . . . . . . . . . . . . . . . . . . . . . High Security . | . . . . . . . . . . . . . . . . . . . . . . . Max Security . | . . . . . . . . . . . . . . . . . . . . . . . Peak Influence 1619 | 15 163 5 350 59 230 1033 531 384 . . . . 142 371 308 248 1619 1527 824 1000 539 . Initial 1064 | . . 5 . 41 . 117 488 215 . . . . . 22 196 92 76 1064 801 376 487 . Average 310 | 2 66 . 164 14 93 643 462 170 . . . . 77 67 231 200 794 1329 693 776 397 . Influence Increases 11458 | 30 587 . 1196 193 660 1006 513 750 70 110 . 120 475 1065 302 196 1968 553 269 804 546 45 Destroy 0b10 Robot/C 5780 | . 340 . 680 120 420 600 320 280 60 100 . 100 100 620 160 80 600 300 40 540 320 . Destroy 0b10 Robot/NC 530 | 30 60 . 110 15 60 . 30 105 . . . . 25 30 10 10 35 . . 10 . . Destroy Leader 1092 | . 90 . 192 20 106 20 104 86 10 10 . 20 38 76 . . 160 20 20 50 70 . Allied During Kill 1338 | . . . . 8 5 32 . . . . . . . 203 112 90 792 34 . 62 . . Successful Hack 315 | . 33 . 15 . 33 . 18 74 . . . . 46 12 . . 22 . 28 . 34 . Select Force Hacks 120 | . 60 . 60 . . . . . . . . . . . . . . . . . . . Disable Machine 555 | . . . 45 15 15 . . 90 . . . . 75 30 15 15 165 . 60 . 30 . Anti-Garrison Action 500 | . . . . . . 300 . . . . . . . . . . . 150 . 50 . . Destroy Structure 568 | . 4 . 34 . 6 54 26 55 . . . . 11 19 5 1 149 49 16 47 92 . Partial Spotted 45 | . . . . . . . . 15 . . . . . . . . 15 . 15 . . . Lose Combat Pursuer 615 | . . . 60 15 15 . 15 45 . . . . 180 75 . . 30 . 90 45 . 45 Influence Decreases 11190 | 30 572 15 1089 300 480 183 1041 842 419 144 . 120 428 762 420 210 666 546 1258 412 1041 212 Entered New Map 3473 | . . 10 . 66 . 63 515 260 142 7 . . . 25 154 140 142 456 726 162 443 162 Time Decay 5839 | 30 562 5 629 234 415 . 486 582 277 137 . 110 418 454 246 60 404 . 342 . 398 50 Lost Part 693 | . 10 . 10 . 40 80 40 . . . . 10 10 63 . 10 60 30 40 150 140 . Lost Ally 585 | . . . . . 25 40 . . . . . . . 220 20 . 60 60 . 100 60 . Purge Threat 600 | . . . 450 . . . . . . . . . . . . . . . 150 . . . Squads Dispatched 57 | . 4 . 4 1 7 . 10 8 . . . . 4 2 . . 10 . 3 . 4 . Investigation 14 | . 2 . 3 . 2 . 1 1 . . . . 1 2 . . 1 . 1 . . . Extermination 10 | . . . . . . . . 5 . . . . 2 . . . 1 . 1 . 1 . Reinforcement 16 | . 2 . 1 . 2 . 4 2 . . . . 1 . . . 3 . . . 1 . Assault 7 | . . . . 1 . . 2 . . . . . . . . . 2 . 1 . 1 . Garrison 10 | . . . . . 3 . 3 . . . . . . . . . 3 . . . 1 . Intercept . | . . . . . . . . . . . . . . . . . . . . . . . Searches Triggered . | . . . . . . . . . . . . . . . . . . . . . . . Data Miner Redirects 3 | . . . . . . . . . . . . . . . . . 2 . . . 1 . Construction Impeded 1 | . . . . . . . . 1 . . . . . . . . . . . . . . Haulers Reinforced 2 | . . . . . . . . . . . . . 1 . . . 1 . . . . . Active Scanning Responses . | . . . . . . . . . . . . . . . . . . . . . . . Cargo Convoy Interrupts 1 | . . . . . . . . . . . . . 1 . . . . . . . . . Stealth | -11 -10 -10 -9 -9 -8 -8 -8 -7 -7 -7 -7 -6 -6 -6 -6 -6 -6 -6 -5 -5 -5 -5 --------- Run | Yrd Mat Min Mat Min Mat Gar Mat Fac Low Low Dat Pro Fac Ext Cet Arc Hub Gar Fac Gar Fac Upp Distress Signals 29 | . 3 . 4 . 3 . 8 3 . . . . 3 . 2 . 3 . . . . . Communications Jammed . | . . . . . . . . . . . . . . . . . . . . . . . Distress Signals . | . . . . . . . . . . . . . . . . . . . . . . . Times Spotted 457 | . 28 . 47 10 38 32 27 48 4 5 . 5 22 42 7 1 34 20 26 39 18 4 Peak Tracking Total 13 | . 5 . 6 5 6 4 6 5 4 4 . 3 5 7 5 1 6 8 13 8 6 3 Tactical Retreats 29 | . . . 4 1 1 . 1 2 . . . . 8 5 . . 2 . 2 2 . 1 Traps | -11 -10 -10 -9 -9 -8 -8 -8 -7 -7 -7 -7 -6 -6 -6 -6 -6 -6 -6 -5 -5 -5 -5 ------- Run | Yrd Mat Min Mat Min Mat Gar Mat Fac Low Low Dat Pro Fac Ext Cet Arc Hub Gar Fac Gar Fac Upp Traps Triggered 20 | . 1 . . 1 1 3 3 1 . . . . . . . . . . 2 4 4 . Indirectly . | . . . . . . . . . . . . . . . . . . . . . . . Trap Hack Attempts . | . . . . . . . . . . . . . . . . . . . . . . . Triggered . | . . . . . . . . . . . . . . . . . . . . . . . Disarmed . | . . . . . . . . . . . . . . . . . . . . . . . Reprogrammed . | . . . . . . . . . . . . . . . . . . . . . . . Reused . | . . . . . . . . . . . . . . . . . . . . . . . Traps Extracted . | . . . . . . . . . . . . . . . . . . . . . . . Installed . | . . . . . . . . . . . . . . . . . . . . . . . Triggered . | . . . . . . . . . . . . . . . . . . . . . . . Machines | -11 -10 -10 -9 -9 -8 -8 -8 -7 -7 -7 -7 -6 -6 -6 -6 -6 -6 -6 -5 -5 -5 -5 ---------- Run | Yrd Mat Min Mat Min Mat Gar Mat Fac Low Low Dat Pro Fac Ext Cet Arc Hub Gar Fac Gar Fac Upp Machines Disabled 45 | . . . 3 1 1 4 . 6 . . . . 5 2 1 1 11 3 4 1 2 . Max in Single Turn 5 | . . . 1 1 1 1 . 2 . . . . 1 1 1 . 5 1 1 1 1 . Garrison Access 4 | . . . . . . . . 3 . . . . 1 . . . . . . . . . Garrison Relay 8 | . . . . . . 4 . . . . . . . . . . . 3 . 1 . . Network Hub 1 | . . . . . . . . . . . . . . . . . 1 . . . . . Machines Repaired . | . . . . . . . . . . . . . . . . . . . . . . . Machines Dismantled . | . . . . . . . . . . . . . . . . . . . . . . . Machines Sabotaged . | . . . . . . . . . . . . . . . . . . . . . . . Overloaded Fab Kills . | . . . . . . . . . . . . . . . . . . . . . . . Hacking | -11 -10 -10 -9 -9 -8 -8 -8 -7 -7 -7 -7 -6 -6 -6 -6 -6 -6 -6 -5 -5 -5 -5 --------- Run | Yrd Mat Min Mat Min Mat Gar Mat Fac Low Low Dat Pro Fac Ext Cet Arc Hub Gar Fac Gar Fac Upp Machines Accessed 108 | . 10 . 14 1 10 2 4 24 . . 3 . 10 8 1 . 7 . 7 . 7 . Terminals 68 | . 7 . 10 . 8 2 4 14 . . . . 3 8 1 . 6 . 2 . 3 . Fabricators 5 | . . . . . . . . 2 . . . . 1 . . . . . . . 2 . Repair Stations 4 | . 1 . 1 . 1 . . 1 . . . . . . . . . . . . . . Recycling Units 16 | . 2 . 2 . . . . 3 . . . . 3 . . . . . 4 . 2 . Scanalyzers 4 | . . . 1 . . . . 1 . . . . 2 . . . . . . . . . Garrison Access 7 | . . . . . 1 . . 3 . . . . 1 . . . 1 . 1 . . . Total Hacks 314 | . 29 . 47 1 28 4 14 51 . . 22 . 22 26 2 . 19 . 30 . 19 . Successful 172 | . 18 . 35 1 16 2 10 27 . . 22 . 8 5 . . 6 . 13 . 9 . Failed 140 | . 10 . 11 . 12 2 4 24 . . . . 14 21 2 . 13 . 17 . 10 . Catastrophic 24 | . . . . . 1 . 1 7 . . . . 2 3 1 . 4 . 3 . 2 . Database Lockouts 2 | . 1 . 1 . . . . . . . . . . . . . . . . . . . Manual 186 | . 22 . 24 . 24 . 11 31 . . . . 10 19 1 . 9 . 20 . 15 . Terminals 213 | . 25 . 35 . 25 4 14 32 . . . . 5 26 2 . 18 . 21 . 6 . Fabricators 11 | . . . . . . . . 3 . . . . 2 . . . . . . . 6 . Repair Stations 10 | . 2 . 3 . 2 . . 3 . . . . . . . . . . . . . . Recycling Units 32 | . 2 . 2 . . . . 4 . . . . 9 . . . . . 8 . 7 . Scanalyzers 15 | . . . 7 . . . . 3 . . . . 5 . . . . . . . . . Garrison Access 10 | . . . . . 1 . . 6 . . . . 1 . . . 1 . 1 . . . Terminal Hacks 66 | . 6 . 16 1 3 2 3 4 . . 22 . . 4 . . 1 . 4 . . . Record 6 | . . . . . . . . . . . 6 . . . . . . . . . . . Part Schematic 13 | . . . 2 . . . . . . . 10 . . 1 . . . . . . . . Robot Schematic 3 | . . . . . . . . . . . 3 . . . . . . . . . . . Robot Analysis 5 | . 2 . 3 . . . . . . . . . . . . . . . . . . . Prototype ID Bank 13 | . 2 . 3 . 1 . 1 1 . . 3 . . 2 . . . . . . . . Open Door 2 | . . . . 1 . 1 . . . . . . . . . . . . . . . . Emergency Access Points 2 | . . . . . . 1 . . . . . . . . . . . . 1 . . . Terminal Index 7 | . 1 . 1 . 1 . 1 1 . . . . . . . . 1 . 1 . . . Alert Level 6 | . 1 . 4 . 1 . . . . . . . . . . . . . . . . . Unreport Threat 3 | . . . 3 . . . . . . . . . . . . . . . . . . . Locate Traps 3 | . . . . . . . . 1 . . . . . 1 . . . . 1 . . . Patrol Status 1 | . . . . . . . . 1 . . . . . . . . . . . . . . Recall Investigation 1 | . . . . . . . 1 . . . . . . . . . . . . . . . Zone Layout 1 | . . . . . . . . . . . . . . . . . . . 1 . . . Fabricator Hacks 3 | . . . . . . . . 1 . . . . . . . . . . . . 2 . Network Status 2 | . . . . . . . . 1 . . . . . . . . . . . . 1 . Load Schematic 1 | . . . . . . . . . . . . . . . . . . . . . 1 . Repair Station Hacks 7 | . 1 . 2 . 2 . . 2 . . . . . . . . . . . . . . Scan Component 4 | . 1 . 1 . 1 . . 1 . . . . . . . . . . . . . . Repair 3 | . . . 1 . 1 . . 1 . . . . . . . . . . . . . . Recycling Unit Hacks 2 | . . . . . . . . . . . . . 1 . . . . . . . 1 . Retrieve Components 2 | . . . . . . . . . . . . . 1 . . . . . . . 1 . Scanalyzer 10 | . . . 4 . . . . 3 . . . . 3 . . . . . . . . . Insert Component 5 | . . . 2 . . . . 1 . . . . 2 . . . . . . . . . Analyze 2 | . . . 1 . . . . 1 . . . . . . . . . . . . . . Retrieve Study 3 | . . . 1 . . . . 1 . . . . 1 . . . . . . . . . Garrison Access Hacks 10 | . . . . . 1 . . 6 . . . . 1 . . . 1 . 1 . . . Unlock Access 3 | . . . . . 1 . . . . . . . . . . . 1 . 1 . . . Seal Access 4 | . . . . . . . . 3 . . . . 1 . . . . . . . . . Coupler Status 3 | . . . . . . . . 3 . . . . . . . . . . . . . . Unauthorized Hacks 74 | . 11 . 13 . 10 . 7 11 . . . . 3 1 . . 4 . 8 . 6 . Terminals 57 | . 9 . 11 . 10 . 7 8 . . . . . 1 . . 4 . 6 . 1 . Track 7 | . . . 1 . 2 . 1 2 . . . . . . . . . . 1 . . . Assimilate 1 | . . . . . . . 1 . . . . . . . . . . . . . . . Botnet 17 | . 3 . 4 . 2 . 1 1 . . . . . 1 . . 2 . 2 . 1 . Operators 5 | . . . 1 . 1 . 1 . . . . . . . . . 1 . 1 . . . Skim 27 | . 6 . 5 . 5 . 3 5 . . . . . . . . 1 . 2 . . . Fabricators 4 | . . . . . . . . 1 . . . . . . . . . . . . 3 . Liberate 3 | . . . . . . . . 1 . . . . . . . . . . . . 2 . Haulers 1 | . . . . . . . . . . . . . . . . . . . . . 1 . Repair Stations . | . . . . . . . . . . . . . . . . . . . . . . . Recycling Units 13 | . 2 . 2 . . . . 2 . . . . 3 . . . . . 2 . 2 . Recyclers 5 | . . . . . . . . 2 . . . . 1 . . . . . 1 . 1 . Mask 4 | . . . . . . . . . . . . . 2 . . . . . 1 . 1 . Tunnel 4 | . 2 . 2 . . . . . . . . . . . . . . . . . . . Scanalyzers . | . . . . . . . . . . . . . . . . . . . . . . . Garrison Access . | . . . . . . . . . . . . . . . . . . . . . . . Data Cores Recovered 2 | . 1 . . . 1 . . . . . . . . . . . . . . . . . Used 1 | . . . . . 1 . . . . . . . . . . . . . . . . . Hacking Detections 88 | . 7 . 11 . 8 2 4 22 . . . . 9 8 . . 6 . 5 . 6 . Full Trace Events 7 | . . . 1 . 1 . . 1 . . . . 1 2 . . 1 . . . . . Feedback Events . | . . . . . . . . . . . . . . . . . . . . . . . Feedback Blocked . | . . . . . . . . . . . . . . . . . . . . . . . Robot Schematics Acquired 3 | . . . . . . . . . . . 3 . . . . . . . . . . . Robots Built . | . . . . . . . . . . . . . . . . . . . . . . . Authchips . | . . . . . . . . . . . . . . . . . . . . . . . Time . | . . . . . . . . . . . . . . . . . . . . . . . Total Robot Build Rating . | . . . . . . . . . . . . . . . . . . . . . . . Part Schematics Acquired 15 | . . . 3 . . . . 1 . . 10 . . 1 . . . . . . . . Parts Built . | . . . . . . . . . . . . . . . . . . . . . . . Authchips . | . . . . . . . . . . . . . . . . . . . . . . . Time . | . . . . . . . . . . . . . . . . . . . . . . . Total Part Build Rating . | . . . . . . . . . . . . . . . . . . . . . . . Part Studies Acquired 3 | . . . 1 . . . . 1 . . . . 1 . . . . . . . . . Parts Repaired 3 | . . . 1 . 1 . . 1 . . . . . . . . . . . . . . Time 210 | . . . 32 . 108 . . 70 . . . . . . . . . . . . . . Parts Recycled . | . . . . . . . . . . . . . . . . . . . . . . . Recycled Matter . | . . . . . . . . . . . . . . . . . . . . . . . Retrieved Matter . | . . . . . . . . . . . . . . . . . . . . . . . Retrieved Components 10 | . . . . . . . . . . . . . 2 . . . . . . . 8 . Parts Scanalyzed 4 | . . . 2 . . . . 1 . . . . 1 . . . . . . . . . Part Schematics Acquired 2 | . . . 1 . . . . 1 . . . . . . . . . . . . . . Parts Damaged . | . . . . . . . . . . . . . . . . . . . . . . . Bothacking | -11 -10 -10 -9 -9 -8 -8 -8 -7 -7 -7 -7 -6 -6 -6 -6 -6 -6 -6 -5 -5 -5 -5 ------------ Run | Yrd Mat Min Mat Min Mat Gar Mat Fac Low Low Dat Pro Fac Ext Cet Arc Hub Gar Fac Gar Fac Upp Used RIF Installer 3 | . . . . . . 1 . . . . . . . . . . . 1 . 1 . . Command Fork 1 | . . . . . . . . . . . . . . . . . . 1 . . . . Zone Cloak 1 | . . . . . . . . . . . . . . . . . . . . 1 . . Robots Hacked 18 | . . . . . . . . . . . . . . 1 . . . 6 2 4 5 . Non-combat 7 | . . . . . . . . . . . . . . . . . . . 2 . 5 . Combat 11 | . . . . . . . . . . . . . . 1 . . . 6 . 4 . . Robot Hacks Applied 23 | . . . . . . . . . . . . . . 1 . . . 7 3 4 8 . parse_system 2 | . . . . . . . . . . . . . . 1 . . . 1 . . . . map_walls 3 | . . . . . . . . . . . . . . . . . . . . . 3 . map_earth 1 | . . . . . . . . . . . . . . . . . . . . . 1 . find_dsf 1 | . . . . . . . . . . . . . . . . . . . 1 . . . drop_inventory 2 | . . . . . . . . . . . . . . . . . . . 1 . 1 . locate_stockpiles 1 | . . . . . . . . . . . . . . . . . . . . . 1 . find_recycling 1 | . . . . . . . . . . . . . . . . . . . . . 1 . ignore_parts 1 | . . . . . . . . . . . . . . . . . . . . . 1 . purge_threat 1 | . . . . . . . . . . . . . . . . . . . 1 . . . amplify_resonance 1 | . . . . . . . . . . . . . . . . . . 1 . . . . overwrite_iff 1 | . . . . . . . . . . . . . . . . . . 1 . . . . formatsys_high 8 | . . . . . . . . . . . . . . . . . . 4 . 4 . . Relay Couplers Released 37 | . . . . . . 21 . . . . . . . . . . . 12 . 4 . . Machine Destruction 33 | . . . . . . 17 . . . . . . . . . . . 12 . 4 . . Programmers 4 | . . . . . . 4 . . . . . . . . . . . . . . . . Attached 7 | . . . . . . . . . . . . . . . . . . 3 1 2 1 . Fabnet Peak Effective % . | . . . . . . . . . . . . . . . . . . . . . . . Robots Rewired 18 | . . . . . . 2 . . . . . . . 13 . . . . . 3 . . Allies Hacked . | . . . . . . . . . . . . . . . . . . . . . . . Hacks Repelled . | . . . . . . . . . . . . . . . . . . . . . . . Allies | -11 -10 -10 -9 -9 -8 -8 -8 -7 -7 -7 -7 -6 -6 -6 -6 -6 -6 -6 -5 -5 -5 -5 -------- Run | Yrd Mat Min Mat Min Mat Gar Mat Fac Low Low Dat Pro Fac Ext Cet Arc Hub Gar Fac Gar Fac Upp Total Allies 49 | . . . . 3 . 2 . 2 . . . . . 22 5 . . 5 . 7 3 . Largest Group 12 | . . . . 2 2 2 . 2 . . . . . 12 7 7 6 3 . 5 3 . Highest-Rated Group 678 | . . . . 49 49 70 . 42 . . . . . 324 678 671 519 108 . 224 87 . Highest-Rated Ally 159 | . . . . 31 31 39 . 21 . . . . . 159 159 152 96 47 . 51 29 . Total Orders 18 | . . . . . . . . . . . . . . 13 2 . 1 . . 2 . . STAY 3 | . . . . . . . . . . . . . . . 1 . 1 . . 1 . . ROAM 3 | . . . . . . . . . . . . . . 3 . . . . . . . . FOLLOW 2 | . . . . . . . . . . . . . . . 1 . . . . 1 . . GUARD 6 | . . . . . . . . . . . . . . 6 . . . . . . . . AID 4 | . . . . . . . . . . . . . . 4 . . . . . . . . Ally Attacks 477 | . . . . 17 5 23 . . . . . . . 144 52 16 125 31 . 34 30 . Total Damage 11183 | . . . . 268 66 372 . . . . . . . 3220 1193 515 3962 549 . 734 304 . Kills 91 | . . . . 1 2 8 . . . . . . . 19 9 4 31 3 . 8 6 . Allies Corrupted 1 | . . . . . . . . . . . . . . . . . 1 . . . . . Allies Melted 1 | . . . . . . . . . . . . . . 1 . . . . . . . . Intel | -11 -10 -10 -9 -9 -8 -8 -8 -7 -7 -7 -7 -6 -6 -6 -6 -6 -6 -6 -5 -5 -5 -5 ------- Run | Yrd Mat Min Mat Min Mat Gar Mat Fac Low Low Dat Pro Fac Ext Cet Arc Hub Gar Fac Gar Fac Upp Active Infowar (turns) 11886 | 20 686 . . . 1 . . 2511 1018 1299 126 590 872 1297 401 120 965 234 682 169 781 114 Optics 5298 | . . . . . . . . 2511 1018 1299 126 344 . . . . . . . . . . Sensors 7007 | . . . . . 1 . . 70 994 565 126 354 872 1297 401 120 632 . 680 . 781 114 Terrain 1436 | . . . . . . . . . . . . . . . . . 595 161 680 . . . Seismic 706 | 20 686 . . . . . . . . . . . . . . . . . . . . . Machine Analysis 360 | . . . . . . . . . . . . . . . . . 360 . . . . . Cloaking 870 | . . . . . . . . . . . . . . . . . . 73 . 169 628 . Robot Analysis Total 5 | . 2 . 3 . . . . . . . . . . . . . . . . . . . Derelict Logs Recovered 8 | . . 2 . 2 . . . . 1 2 . 1 . . . . . . . . . . Drone Launches . | . . . . . . . . . . . . . . . . . . . . . . . Drone Recoveries . | . . . . . . . . . . . . . . . . . . . . . . . Exploration | -11 -10 -10 -9 -9 -8 -8 -8 -7 -7 -7 -7 -6 -6 -6 -6 -6 -6 -6 -5 -5 -5 -5 ------------- Run | Yrd Mat Min Mat Min Mat Gar Mat Fac Low Low Dat Pro Fac Ext Cet Arc Hub Gar Fac Gar Fac Upp Turns Passed 24907 | 162 1941 312 2406 992 1711 1755 1262 3302 1018 1299 126 606 1042 1775 525 120 970 712 760 1056 941 114 Spaces Moved 12854 | 88 985 195 1154 434 568 708 518 1736 606 705 79 329 704 974 303 63 644 387 474 459 526 215 Core 249 | 14 . . . . . . . . . . . . . . . . . . . . 20 215 Treads 7721 | . 690 195 1154 434 568 708 518 1736 606 705 79 328 . . . . . . . . . . Legs 4273 | 74 295 . . . . . . . . . . 1 704 974 303 63 644 387 474 354 . . Wheels 610 | . . . . . . . . . . . . . . . . . . . . 104 506 . Hover . | . . . . . . . . . . . . . . . . . . . . . . . Flight 1 | . . . . . . . . . . . . . . . . . . . . 1 . . Fastest Speed 50 | 50 120 160 160 160 200 200 160 160 160 156 156 122 118 115 112 112 112 112 116 115 50 50 Average Speed 153 | 108 162 160 160 188 206 204 201 160 160 176 156 155 118 120 117 112 120 114 120 160 134 50 Slowest Speed 1975 | 120 190 160 160 200 216 216 240 160 160 226 156 232 122 188 185 112 190 186 190 1975 145 50 Overloaded Moves . | . . . . . . . . . . . . . . . . . . . . . . . Propulsion Burnouts . | . . . . . . . . . . . . . . . . . . . . . . . Robots Hopped . | . . . . . . . . . . . . . . . . . . . . . . . Potential Cave-ins 2 | . . . . . . . . . . . . . . . . . . . 2 . . . Cave-ins Triggered . | . . . . . . . . . . . . . . . . . . . . . . . Exploration Rate (%) 55 | 5 96 58 95 98 45 75 44 48 74 87 72 53 15 87 67 70 53 37 11 42 20 34 Regions Visited 22 Branch Regions 11 Pre-discovered Areas 15 | . 3 . 5 1 2 . . 1 1 1 1 . . . . . . . . . . . Known Exits Taken 17 | . . 1 1 1 1 . 1 1 1 1 1 1 1 1 1 1 1 . 1 . 1 . Unknown Exits Taken 2 | 1 1 . . . . . . . . . . . . . . . . . . . . . Scrap Searched 6 | . . . . 1 . . . . 2 2 . 1 . . . . . . . . . . Spaces Dug 124 | . 2 . 3 . . 9 1 27 7 5 . 4 11 2 . . 12 12 7 10 12 . Terrain Destroyed 523 | . 2 . 25 . . 9 21 58 27 41 . 8 11 15 2 . 152 80 10 12 50 . Melee 82 | . . . . . . 9 1 23 6 . . . 11 2 . . 8 7 5 10 . . Projectile 88 | . 2 . 6 . . . . 10 6 13 . 8 . . 2 . 4 . 5 2 30 . AOE 353 | . . . 19 . . . 20 25 15 28 . . . 13 . . 140 73 . . 20 . Terrain Rammed . | . . . . . . . . . . . . . . . . . . . . . . . Walls Destroyed . | . . . . . . . . . . . . . . . . . . . . . . . Machines Disabled . | . . . . . . . . . . . . . . . . . . . . . . . Actions | -11 -10 -10 -9 -9 -8 -8 -8 -7 -7 -7 -7 -6 -6 -6 -6 -6 -6 -6 -5 -5 -5 -5 --------- Run | Yrd Mat Min Mat Min Mat Gar Mat Fac Low Low Dat Pro Fac Ext Cet Arc Hub Gar Fac Gar Fac Upp Total 16199 | 122 1162 195 1476 568 946 849 654 2087 629 728 82 379 816 1443 441 108 772 586 617 634 684 221 Wait 1407 | 1 23 . 99 97 244 2 48 161 4 . . 6 38 285 89 38 56 114 54 13 31 4 Move 12834 | 87 984 194 1153 433 567 707 517 1735 605 704 78 328 703 973 302 62 644 386 474 458 525 215 Hop . | . . . . . . . . . . . . . . . . . . . . . . . Pick Up 193 | 8 20 . 24 8 14 12 10 17 . . . 4 3 21 6 1 6 5 8 8 18 . Fast Attach 79 | 5 1 . 4 . 5 1 1 12 . 2 2 1 6 3 7 . 3 2 5 11 8 . Attach 87 | 2 1 . 3 . 6 8 4 3 . . . 6 2 8 . 1 5 7 6 12 11 2 Detach 14 | . . . . . . 1 1 1 . . . 2 . . . . 1 2 3 3 . . Swap 284 | . 16 . 29 1 13 18 12 21 5 4 . 11 13 51 8 2 20 16 19 11 14 . Drop 200 | . 18 . 29 4 16 4 17 28 1 1 2 2 7 14 13 . 5 5 8 6 20 . Fire 697 | 15 80 . 130 21 78 63 36 38 8 17 . 13 . 49 12 2 8 25 9 36 57 . Melee 305 | . . . . . . 23 1 53 6 . . 6 44 39 4 2 24 22 23 58 . . Ram . | . . . . . . . . . . . . . . . . . . . . . . . Kick 14 | 4 4 . . . . . . . . . . . . . . . . . 3 3 . . Crush 53 | . 15 1 5 4 3 . 7 18 . . . . . . . . . . . . . . Escape Stasis 20 | . . . . . . 5 . . . . . . . . . . . . 5 10 . . Rewire 12 | . . . . . . 5 . . . . . . . . . . . 2 . 5 . . Trap . | . . . . . . . . . . . . . . . . . . . . . . . Miscellaneous . | . . . . . . . . . . . . . . . . . . . . . . . Route ------- -11/Scrapyard -10/Materials (discovered 6 exits: *Mat x3 / [*Min x2] / [*Sub]) -10/Mines (discovered 2 exits: *Mat x2) -9/Materials (discovered 5 exits: *Mat x3 / *Min x2) -9/Mines (discovered 2 exits: *Mat x2) -8/Materials (discovered 4 exits: Fac / Sto x2 / Gar) -8/Garrison (discovered 3 exits: *Mat x3) -8/Materials (discovered 4 exits: *Fac x3 / Sto) -7/Factory (discovered 6 exits: *Fac x4 / *Low x2) -7/Lower Caves -7/Lower Caves -7/Data Miner -6/Proximity Caves -6/Factory (discovered 3 exits: Fac / *Ext x2) -6/Extension (discovered 2 exits: *Fac / *Cet) -6/Cetus (discovered 3 exits: *Fac x2 / *Arc) -6/Archives -6/Hub_04(d) (discovered 3 exits: *Fac x2 / Gar) -6/Garrison -5/Factory (discovered 3 exits: *Fac / Upp / Gar) -5/Garrison -5/Factory -5/Upper Caves (discovered 1 exit: Upp) History --------- Turn | Location | Event 9 | -11/Scrapyard | Discovered new exit (range 14) 163 | -11/Scrapyard | Entered Materials 316 | -10/Materials | Build established: Mutant 401 | -10/Materials | Discovered new exit (range 11) 588 | -10/Materials | Discovered new exit (range 15) 726 | -10/Materials | Discovered new exit (range 14) 870 | -10/Materials | Build established: Scavenger-Mutant 957 | -10/Materials | Discovered new exit (range 9) 1084 | -10/Materials | Core integrity fell below 50% 1100 | -10/Materials | Discovered new exit (range 16) 1367 | -10/Materials | Build established: Mutant 1550 | -10/Materials | Central database locked down 1594 | -10/Materials | Learned Storage stockpile data 1618 | -10/Materials | Discovered new exit (range 11) 1649 | -10/Materials | Learned 4 Recycling zone layouts 1660 | -10/Materials | Learned location of 3 exits from Materials 1664 | -10/Materials | Learned location of Subcaves (-10) 1665 | -10/Materials | Loaded intel: 17 trap records 1672 | -10/Materials | Learned 4 Recycling zone layouts 2104 | -10/Materials | Entered Mines 2105 | -10/Mines | Identified exit to Materials 2122 | -10/Mines | Learned 2 Materials zone layouts 2346 | -10/Mines | Learned location of 1 exit from Materials 2416 | -10/Mines | Entered Materials 2416 | -9/Materials | Evolved 2 slots: Propulsion x1, Utility x1 2417 | -9/Materials | Identified exit to Materials 2417 | -9/Materials | Identified exit to Mines 3236 | -9/Materials | Build established: Scavenger-Mutant 3574 | -9/Materials | Build established: Mutant 3994 | -9/Materials | Learned 4 Recycling zone layouts 4021 | -9/Materials | Learned 2 Storage zone layouts 4040 | -9/Materials | Learned location of 1 exit from Recycling 4051 | -9/Materials | Learned location of Mines (-9) 4052 | -9/Materials | Loaded intel: 8 trap records 4063 | -9/Materials | Learned 2 Materials zone layouts 4405 | -9/Materials | Repaired Hrd. Light Armor Plating 4671 | -9/Materials | Build established: Scavenger-Mutant 4788 | -9/Materials | Central database locked down 4822 | -9/Materials | Entered Mines 4833 | -9/Mines | Met a Derelict who couldn't figure out how to use a Trap Extractor 4835 | -9/Mines | Met a Derelict bent on vengeance 4866 | -9/Mines | Assembled infested the area 5050 | -9/Mines | Met a Derelict testing a Signal Generator 5290 | -9/Mines | Learned location of Zion (-6) 5657 | -9/Mines | Found a damaged Exp. Sensor Array with a note attached 5661 | -9/Mines | Found Prototype Device 5814 | -9/Mines | Entered Materials 5814 | -8/Materials | Accompanied by 2 allies 5814 | -8/Materials | Evolved 2 slots: Utility x1, Weapon x1 5815 | -8/Materials | Identified exit to Storage 5816 | -8/Materials | Identified exit to Factory 5819 | -8/Materials | Led the pair of lost Derelicts to an unsafe place 6124 | -8/Materials | Build established: Scavenger-Tank 6282 | -8/Materials | Identified Exp. Sensor Array 6395 | -8/Materials | Repaired Exp. Sensor Array? 7113 | -8/Materials | Garrison activated, responded to threat 7155 | -8/Materials | Identified exit to Garrison 7171 | -8/Materials | Learned Factory garrison access intel 7269 | -8/Materials | Learned Factory trap positions 7304 | -8/Materials | Learned Storage security intel 7525 | -8/Materials | Entered Garrison 7567 | -8/Garrison | Garrison Relay disabled 7789 | -8/Garrison | Triggered checkpoint 7988 | -8/Garrison | Discovered new exit (range 15) 8108 | -8/Garrison | Triggered checkpoint 8182 | -8/Garrison | Core integrity fell below 50% 8204 | -8/Garrison | Lost 4 parts (3n1w) 8271 | -8/Garrison | Garrison Relay disabled 8345 | -8/Garrison | Triggered checkpoint 8364 | -8/Garrison | Garrison Relay disabled 8429 | -8/Garrison | Identified exit to Materials 8517 | -8/Garrison | Triggered checkpoint 8602 | -8/Garrison | Discovered exit to Materials (range 14) 8686 | -8/Garrison | Garrison Relay disabled 8728 | -8/Garrison | Triggered checkpoint 8819 | -8/Garrison | Triggered checkpoint 8831 | -8/Garrison | Discovered exit to Materials (range 13) 8903 | -8/Garrison | Installed Relay Interface Framework 8963 | -8/Garrison | Triggered checkpoint 9280 | -8/Garrison | Entered Materials 9619 | -8/Materials | Garrison activated, responded to threat 9723 | -8/Materials | Met 7R-MNS 9801 | -8/Materials | Core integrity fell below 20% 10080 | -8/Materials | First assault squad dispatched 10542 | -8/Materials | Entered Factory 10542 | -7/Factory | Evolved 2 slots: Propulsion x1, Utility x1 10543 | -7/Factory | Caught up to 7R-MNS 10543 | -7/Factory | Identified exit to Factory 10544 | -7/Factory | Loaded intel: 102 trap records 10545 | -7/Factory | Loaded intel: 4 garrison access locations 10647 | -7/Factory | Allied Derelicts emerged from ambush trap array 11058 | -7/Factory | Allied Derelicts emerged from ambush trap array 11180 | -7/Factory | Discovered new exit (range 12) 11267 | -7/Factory | Discovered exit to Factory (range 10) 11392 | -7/Factory | Build established: Scavenger-Mutant 13063 | -7/Factory | Learned location of 1 exit from Cetus 13156 | -7/Factory | Learned location of Lower Caves (-7) 13189 | -7/Factory | Learned Factory trap positions 13214 | -7/Factory | Learned Extension garrison access intel 13223 | -7/Factory | Discovered new exit (range 15) 13260 | -7/Factory | Learned location of 1 exit from Upper Caves 13299 | -7/Factory | Learned location of 1 exit from Proximity Caves 13595 | -7/Factory | Repaired Cld. Particle Cannon 13841 | -7/Factory | Identified exit to Lower Caves 13844 | -7/Factory | Entered Lower Caves 14061 | -7/Lower Caves | Build established: Assassin 14273 | -7/Lower Caves | Discovered new exit (range 11) 14274 | -7/Lower Caves | Encountered a Warlord checkpoint 14289 | -7/Lower Caves | Identified exit to Lower Caves 14862 | -7/Lower Caves | Entered another Lower Caves area 15249 | -7/Lower Caves | Encountered a Warlord checkpoint 15481 | -7/Lower Caves | Build established: Mutant 16030 | -7/Lower Caves | Discovered new exit (range 4) 16041 | -7/Lower Caves | Identified exit to Data Miner 16097 | -7/Lower Caves | Learned 12 Factory zone layouts 16161 | -7/Lower Caves | Entered Data Miner 16161 | -7/Data Miner | Discovered new exit (range 6) 16168 | -7/Data Miner | Identified exit to Proximity Caves 16187 | -7/Data Miner | Met Data Miner 16213 | -7/Data Miner | Build established: Assassin 16223 | -7/Data Miner | Learned location of Section 7 (-2) 16223 | -7/Data Miner | Acquired the access code to Warlord's prototype stash 16247 | -7/Data Miner | Received God Mode back door access code from Data Miner 16287 | -7/Data Miner | Entered Proximity Caves 16388 | -6/Proximity Caves | Attracted the attention of an 0b10 checkpoint 16581 | -6/Proximity Caves | Spotted B-75 Beast 16632 | -6/Proximity Caves | Destroyed B-75 Beast 16662 | -6/Proximity Caves | Lost 4 parts (2n2u) 16884 | -6/Proximity Caves | System corruption reached 10% 16893 | -6/Proximity Caves | Entered Factory 16893 | -6/Factory | Evolved 2 slots: Utility x2 16894 | -6/Factory | Identified exit to Extension 16895 | -6/Factory | Identified exit to Factory 16896 | -6/Factory | Loaded intel: 119 trap records 16914 | -6/Factory | Build established: Gladiator 17926 | -6/Factory | Cargo convoy interrupted 17935 | -6/Factory | Entered Extension 17991 | -6/Extension | Rescued a captive Derelict 17991 | -6/Extension | Rescued a captive Derelict 18473 | -6/Extension | Build established: Scavenger-Gladiator 18548 | -6/Extension | Rescued a captive Derelict 18548 | -6/Extension | Rescued a captive Derelict 18950 | -6/Extension | Build established: Commander-Gladiator 18999 | -6/Extension | Spotted B-75 Beast 19011 | -6/Extension | Spotted B-75 Beast 19017 | -6/Extension | Allies destroyed B-75 Beast 19054 | -6/Extension | Destroyed B-75 Beast 19084 | -6/Extension | Lost 11 allies 19109 | -6/Extension | Rescued a captive Derelict 19110 | -6/Extension | Rescued a captive Derelict 19332 | -6/Extension | Build established: Scavenger-Gladiator 19358 | -6/Extension | Rescued A7 19374 | -6/Extension | Rescued a captive Derelict 19482 | -6/Extension | Rescued a captive Derelict 19537 | -6/Extension | Discovered exit to Factory (range 13) 19542 | -6/Extension | Discovered new exit (range 8) 19556 | -6/Extension | Disrupted transfer network 19579 | -6/Extension | Identified exit to Cetus 19710 | -6/Extension | Entered Cetus 19710 | -6/Cetus | Accompanied by 5 allies (A7) 19715 | -6/Cetus | Acquired a Cetus Manufacturing Module code from A7 19733 | -6/Cetus | Spotted Cetus Guard 19734 | -6/Cetus | Spotted Cetus Guard 19744 | -6/Cetus | Spotted Cetus Guard 19745 | -6/Cetus | Spotted Cetus Guard 19748 | -6/Cetus | Allies destroyed Cetus Guard 19763 | -6/Cetus | Destroyed Cetus Guard 19766 | -6/Cetus | Allies destroyed Cetus Guard 19770 | -6/Cetus | Allies destroyed Cetus Guard 19800 | -6/Cetus | Lost 3 allies 19830 | -6/Cetus | Started Cetus Manufacturing Module 19840 | -6/Cetus | Escorted A7 to Cetus Mainframe 19855 | -6/Cetus | Manufactured an Enhanced Grunt 19880 | -6/Cetus | Manufactured an Enhanced Grunt 19905 | -6/Cetus | Manufactured an Enhanced Grunt 19930 | -6/Cetus | Manufactured an Enhanced Grunt 19955 | -6/Cetus | Manufactured an Enhanced Grunt 19982 | -6/Cetus | Discovered new exit (range 15) 20027 | -6/Cetus | Spotted Cetus Guard 20068 | -6/Cetus | Discovered exit to Factory (range 15) 20079 | -6/Cetus | Met Revision 17 20167 | -6/Cetus | Found Med. Regenerative Plating 20189 | -6/Cetus | Identified exit to Archives 20235 | -6/Cetus | Entered Archives 20235 | -6/Archives | Accompanied by 7 allies (A7) 20240 | -6/Archives | Received a hacking code to weaken MAIN.C 20326 | -6/Archives | Discovered new exit (range 14) 20339 | -6/Archives | Identified exit to Hub_04(d) 20355 | -6/Archives | Entered Hub_04(d) 20355 | -6/Hub_04(d) | Accompanied by 6 allies 20615 | -6/Hub_04(d) | Discovered exit to Factory (range 3) 20668 | -6/Hub_04(d) | Build established: Commander-Gladiator 20680 | -6/Hub_04(d) | Garrison activated, responded to threat 20705 | -6/Hub_04(d) | First assault squad dispatched 20729 | -6/Hub_04(d) | Incoming assault squad redirected 20962 | -6/Hub_04(d) | Discovered exit to Factory (range 17) 21071 | -6/Hub_04(d) | Incoming assault squad redirected 21191 | -6/Hub_04(d) | Network Hub disabled 21325 | -6/Hub_04(d) | Identified exit to Garrison 21325 | -6/Hub_04(d) | Entered Garrison 21357 | -6/Garrison | Triggered checkpoint 21441 | -6/Garrison | Triggered checkpoint 21467 | -6/Garrison | Garrison Relay disabled 21563 | -6/Garrison | Triggered checkpoint 21569 | -6/Garrison | Triggered checkpoint 21613 | -6/Garrison | P-60 Hacker assimilated allied Soldier 5a 21629 | -6/Garrison | Triggered checkpoint 21669 | -6/Garrison | Garrison Relay disabled 21759 | -6/Garrison | Expanded RIF knowledge: Command Fork 21767 | -6/Garrison | Discovered exit to Factory (range 12) 21857 | -6/Garrison | Triggered checkpoint 21872 | -6/Garrison | Garrison Relay disabled 21954 | -6/Garrison | Build established: Bothacker-Mutant 22037 | -6/Garrison | Entered Factory 22037 | -5/Factory | Evolved 2 slots: Power x1, Utility x1 22038 | -5/Factory | Identified exit to Upper Caves 22099 | -5/Factory | Discovered new exit (range 12) 22113 | -5/Factory | Identified exit to Factory 22335 | -5/Factory | Build established: Bothacker-Assassin 22337 | -5/Factory | First assault squad dispatched 22687 | -5/Factory | Build established: Bothacker-Gladiator 22797 | -5/Factory | Identified exit to Garrison 22797 | -5/Factory | Entered Garrison 22827 | -5/Garrison | Lost 3 parts (1n1u1w) 22847 | -5/Garrison | Triggered checkpoint 22953 | -5/Garrison | Garrison Relay disabled 23063 | -5/Garrison | Triggered checkpoint 23103 | -5/Garrison | Triggered checkpoint 23112 | -5/Garrison | Triggered checkpoint 23155 | -5/Garrison | Lost 4 allies 23365 | -5/Garrison | Discovered new exit (range 10) 23380 | -5/Garrison | Identified exit to Factory 23414 | -5/Garrison | Expanded RIF knowledge: Zone Cloak 23574 | -5/Garrison | Lost 3 parts (3n) 23853 | -5/Garrison | Entered Factory 23879 | -5/Factory | Lost 6 parts (1p1n2u2w) 23940 | -5/Factory | Build established: Scavenger-Mutant 24261 | -5/Factory | Build established: Bothacker-Skirmisher 24435 | -5/Factory | Core integrity fell below 50% 24474 | -5/Factory | Lost 4 parts (1p1n1u1w) 24610 | -5/Factory | Discovered exit to Upper Caves (range 15) 24649 | -5/Factory | Allied Derelicts emerged from ambush trap array 24726 | -5/Factory | Garrison activated, responded to threat 24753 | -5/Factory | First assault squad dispatched 24758 | -5/Factory | System corruption reached 10% 24759 | -5/Factory | Lost 3 allies 24760 | -5/Factory | Build established: Bothacker-Mutant 24761 | -5/Factory | Core integrity fell below 20% 24780 | -5/Factory | Incoming assault squad redirected 24784 | -5/Factory | Released all parts (7) 24794 | -5/Factory | Entered Upper Caves 24795 | -5/Upper Caves | Identified exit to Upper Caves 24813 | -5/Upper Caves | Lost 8 parts (2p3n2u1w) 24907 | -5/Upper Caves | Spotted B-75 Beast 24908 | -5/Upper Caves | Destroyed by B-75 Beast with Magnetic Acceleration Cannon Last Messages --------------- 24784_ Penetrated by Slug. 24784_ Released Plasma Rifle. 24784_ Released Imp. Cooling System. 24784_ Released Hcp. Storage Unit. 24784_ Released Imp. Signal Interpreter. 24784_ Released Targeting Computer. 24784_ Released Relay Coupler [NC]. 24784_ Released Imp. Weapon Cycler. 24785_ Fabricator disabled. 24786_ K-01 Serf collects debris. 24787_ System corrupted: Matter fused (-8). 24788_ Penetrated by Slug. 24790_ K-01 Serf collects debris. LOCATION=UPPER CAVES GOAL=ESCAPE Loading 1 Upper Caves exit... 24795_ Critical hit (Burn: +50). 24802_ System corrupted: Substantial component data lost. 24850_ System corrupted: Matter fused (-8). 24892_ System corrupted: Energy discharge (-19). Map ----- +----------------------------------------------------+ | ?????????????????????????????????????????????????? | | ?????????????????????????????????????????????????? | | ?????????????????????????????????????????????????? | | ?????????????????????????????????????????????????? | | ?????????????????????????????????????????????????? | | ?????????????????????????????????????????????????? | | ?????????????????????????????????????????????????? | | ?????????????????????????????????????????????????? | | ?????????????????????????????????????????????????? | | ?????????????????????????????????????????????????? | | ?????????????????????????????????????????????????? | | ?????????????????????####### ???????????????????? | | ?????????????????????# ????????????????????? | | ?????????????????????# ????????????????????? | | ?????????????????????# BB #????????????????????? | | ????????????????????? BB #????????????????????? | | ?????????????????????? #????????????????????? | | ?????????????????????? ?????????????????????? | | ?????????????????????? ?????????????????????? | | ??????????????????????? ?????????? ??????????? | | ??????????????????????? #???????? ??????????? | | ???????????????????????# #?????? #??????????? | | ????????????????######## #???? #??????????? | | ????????????????# ## ### #??????????? | | ????????????????## % $ #????????????????? | | ???###???????????# @ ##????????????????? | | ??## #???????????# ## ######?????????????????? | | ??# #???????????# ### ;#?????????????????????? | | ??# ##??????????# #?# ##?????????????????????? | | ??# ###??????### #?#% ##??????????????????????? | | ??# ##?????# #?# #???????????????????????? | | ??## #????## ### %#???????????????????????? | | ???# ###?## ## ???????????????????????? | | ???## ### ### ??????????????????????? | | ????# ### ??????????????????????? | | ????###### ?????????????????????? | | ?????????# ????????????????????? | | ????###?## ##????????????????????? | | ????# ## ## #??? ????????????????? | | ????# #?# ### ????????????? ? | | ????# ##?# ???????????? ? | | ????# #### ?????????? ? | | ????# #? ####?????????# # | | ????## # #??????????# + | | ?????## ## #??????????? + | | ??????## ## ## ##??????????? # | | ???????# ###### #???#???????? # | | ??????## ####??# #?? ???????? # | | ??????# #### ##?# ###### #?# ???????? # | | ??????# ## #?# #????????### # #???????? # | +----------------------------------------------------+ Best States ------------- Heat Dissipation 98 Coolant Potential 65 Energy Generation 38 Energy Capacity 1050 Matter Stores 300 Matter Capacity 300 Sight Range 20 Robot Scan Range 15 Terrain Scan Range 20 Terrain Scan Density 10 Cloak Strength 2 Armor Coverage 450 Utility Shielding 66 Weapon Cycling 20 Melee Speed Boost 20 Evasion (%) 55 Targeting Accuracy 5 Melee Accuracy 12 Core Analysis 6 Recoil Reduction 4 Offensive Hacking 10 Relay Coupler Types 1 Relay Coupler Value 32 Item Schematics ----------------- Huge Storage Unit | -9/Materials | Scanalyzed Heat Sink | -9/Materials | Hacked Flight Unit | -9/Materials | Hacked Imp. Medium Armor Plating | -7/Factory | Scanalyzed Combat Drone Bay | -7/Data Miner | Free Lgt. Regenerative Plating | -7/Data Miner | Free Biomechanical Wings | -7/Data Miner | Free Exp. Power Shielding | -7/Data Miner | Free Com. Ion Cannon | -7/Data Miner | Free Thunder Leg | -7/Data Miner | Free Adv. Recoil Stabilizer | -7/Data Miner | Free Hvy. Mass Driver | -7/Data Miner | Free Power Amplifier | -7/Data Miner | Free Dispersion Rifle | -7/Data Miner | Free Imp. Cloaking Device | -6/Extension | Hacked Robot Schematics ------------------ B-48 Gladiator | -7/Data Miner | Free M-22 Extractor | -7/Data Miner | Free R-10 Processor | -7/Data Miner | Free Fabricated ------------ Nothing Repaired ---------- Hrd. Light Armor Plating | 24% | -9/Materials Exp. Sensor Array | 62% | -8/Materials Cld. Particle Cannon | 13% | -7/Factory Studied --------- Lgt. Treads | -9/Materials | Hacked Greatsword | -7/Factory | Hacked Flexi-carbon Leg | -6/Factory | Hacked Alien Tech Used ----------------- None Achievements -------------- None Challenges ------------ None Game ------ Seed PointProtonScythe Manual? 0 Play Time 04:23:28 Cumulative 582.2 hours Start 2025.10.23 @ 14:09:10 End 2025.10.31 @ 13:38:55 Sessions 27 Manual Loads 0 Difficulty Rogue Special Mode None Game No. 221 Rogue 221 Adventurer 0 Explorer 0 Win Type - Total 23 Types 13/1/5/2/0/1/0/1/0/0 Lore% 92 Gallery% 84 Achievement% 63 Wizard Run 0 Options --------- Layout 0 ASCII 0 Keyboard 0 Movement Numpad Keybinds 0 Fullscreen 2 Font 18/SmallcapsGlow Map View 76x50 Zoom Use 0% Tactical HUD 1 Map Filters NONE Filters NONE Steam X RUN: d7305981-6ebd-4599-9da1-57eda2dd6217